[Event "FIDE World School-ch O-13 2025"]
[Site "Vrnjacka Banja"]
[Date "2025.03.20"]
[Round "1.1"]
[White "Yurasov, Matfey"]
[Black "Gadea Marti, Rafael Nicolas"]
[Result "1-0"]
[Annotator "NA RC"]
[ECO "E01"]
[WhiteElo "2271"]
[BlackElo "1736"]
[PlyCount "89"]
[EventDate "2025.03.19"]
[EventType "swiss"]
[EventCountry "SRB"]
[SourceTitle "playchess.com"]
[Source "ChessBase"]
[SourceQuality "1"]
[TimeControl "5400+30"]

1. d4 {[%emt 0:00:06]} d5 {[%emt 0:00:11]} 2. Nf3 {[%emt 0:00:13]} Nf6 {[%emt 0:00:10]} 3. c4 {[%emt 0:00:07]} c6 {[%emt 0:00:22]} 4. g3 {[%emt 0:00:20]} e6 {[%emt 0:02:10]} 5. Bg2 {[%emt 0:00:12]} Bd6 {[%emt 0:00:17]} 6. O-O {[%emt 0:00:24]} Nbd7 {[%emt 0:00:57]} 7. Qc2 {[%emt 0:06:53]} h6 {[%emt 0:04:31]} 8. Nbd2 {[%emt 0:01:00]} dxc4 {[%emt 0:04:16]} 9. Nxc4 {[%emt 0:01:31]} Bc7 {[%emt 0:00:16]} 10. Rd1 {[%emt 0:00:40]} O-O {[%emt 0:02:45]} 11. b3 {[%emt 0:02:16]} Nb6 {[%emt 0:08:30]} 12. Ba3 {[%emt 1:22:48]} Re8 {[%emt 0:01:13]} 13. e4 {[%emt 0:00:00]} Nxc4 {[%emt 0:00:51]} 14. bxc4 {[%emt 0:00:00]} Bd7 {[%emt 0:06:11]} 15. Ne5 {[%emt 0:00:00]} Qb8 {[%emt 0:15:02]} 16. f4 {[%emt 0:00:00]} Bd6 {[%emt 0:04:49]} 17. c5 {[%emt 0:00:00]} Bf8 {[%emt 0:02:15]} 18. Rab1 {[%emt 0:00:00]} Qc7 {[%emt 0:03:13]} 19. g4 {[%emt 0:00:00]} g6 {[%emt 0:05:29]} 20. Qb3 {[%emt 0:00:00]} Bc8 {[%emt 0:05:43]} 21. Qe3 {[%emt 0:00:00]} Rd8 {[%emt 0:09:03]} 22. Rbc1 {[%emt 0:00:00]} Bd7 {[%emt 0:08:55]} 23. g5 {[%emt 0:00:00]} hxg5 {[%emt 0:01:10]} 24. fxg5 {[%emt 0:00:00]} Nh7 {[%emt 0:02:52]} 25. h4 {[%emt 0:00:00]} Bg7 {[%emt 0:02:25]} 26. Nc4 {[%emt 0:00:00]} Bc8 {[%emt 0:01:44]} 27. Bb4 {[%emt 0:00:00]} a5 {[%emt 0:01:28]} 28. Be1 {[%emt 0:00:00]} Qe7 {[%emt 0:02:07]} 29. Bg3 {[%emt 0:00:00]} Nf8 {[%emt 0:01:36]} 30. Bd6 {[%emt 0:00:00]} Qe8 {[%emt 0:00:42]} 31. Nb6 {[%emt 0:00:00]} Ra6 {[%emt 0:01:11]} 32. Bc7 {[%emt 0:00:00]} Rxb6 {[%emt 0:00:59]} 33. cxb6 {[%emt 0:00:00]} Rd7 {[%emt 0:00:11]} 34. Be5 {[%emt 0:00:00]} Bxe5 {[%emt 0:00:46]} 35. dxe5 {[%emt 0:00:00]} Qe7 {[%emt 0:01:09]} 36. Qc3 {[%emt 0:00:00]} Rxd1+ {[%emt 0:01:18]} 37. Rxd1 {[%emt 0:00:00]} Nd7 {[%emt 0:00:29]} 38. Qxa5 {[%emt 0:00:00]} c5 {[%emt 0:00:38]} 39. Rd6 {[%emt 0:00:00]} Qe8 {[%emt 0:01:16]} 40. Qc3 {[%emt 0:00:00]} Kh7 {[%emt 0:00:40]} 41. a4 {[%emt 0:00:00]} Kg8 {[%emt 0:00:12]} 42. a5 {[%emt 0:00:00]} Kh7 {[%emt 0:00:10]} 43. Bf1 {[%emt 0:00:00]} Kg8 {[%emt 0:00:20]} 44. Bb5 {[%emt 0:00:00]} Kh7 {[%emt 0:00:22]} 45. Qd3 {[%emt 0:00:00]} 1-0

[Event "FIDE World School-ch O-13 2025"]
[Site "Vrnjacka Banja"]
[Date "2025.03.20"]
[Round "1.2"]
[White "Zharkov, Daniil"]
[Black "Wijerathna, Vinuka Dihain"]
[Result "0-1"]
[Annotator "NA RC"]
[ECO "C64"]
[WhiteElo "1718"]
[BlackElo "2117"]
[PlyCount "62"]
[EventDate "2025.03.19"]
[EventType "swiss"]
[EventCountry "SRB"]
[SourceTitle "playchess.com"]
[Source "ChessBase"]
[SourceQuality "1"]
[TimeControl "5400+30"]

1. e4 {[%emt 0:00:09]} e5 {[%emt 0:00:11]} 2. Nf3 {[%emt 0:00:16]} Nc6 {[%emt 0:00:10]} 3. Bb5 {[%emt 0:00:18]} Bc5 {[%emt 0:00:28]} 4. O-O {[%emt 0:01:29]} Nd4 {[%emt 0:00:48]} 5. Nxd4 {[%emt 0:02:59]} Bxd4 {[%emt 0:00:13]} 6. c3 {[%emt 0:02:06]} Bb6 {[%emt 0:00:18]} 7. d3 {[%emt 0:08:45]} c6 {[%emt 0:02:17]} 8. Ba4 {[%emt 0:01:38]} Nf6 {[%emt 0:03:07]} 9. Qe2 {[%emt 0:10:22]} O-O {[%emt 0:09:23]} 10. Be3 {[%emt 0:05:35]} d5 {[%emt 0:01:41]} 11. Nd2 {[%emt 0:29:15]} Bg4 {[%emt 0:23:53]} 12. f3 {[%emt 0:01:06]} Be6 {[%emt 0:00:36]} 13. Qf2 {[%emt 0:04:06]} Re8 {[%emt 0:11:58]} 14. Bb3 {[%emt 0:08:36]} Bc7 {[%emt 0:06:05]} 15. Rad1 {[%emt 0:05:09]} a5 {[%emt 0:03:26]} 16. a3 {[%emt 0:01:30]} a4 {[%emt 0:00:34]} 17. Ba2 {[%emt 0:00:02]} d4 {[%emt 0:01:51]} 18. Bxe6 {[%emt 0:04:13]} dxe3 {[%emt 0:00:12]} 19. Bxf7+ {[%emt 0:00:01]} Kxf7 {[%emt 0:00:16]} 20. Qxe3 {[%emt 0:00:00]} Bb6 {[%emt 0:00:19]} 21. d4 {[%emt 0:00:16]} exd4 {[%emt 0:00:24]} 22. Qg5 {[%emt 0:00:18]} dxc3+ {[%emt 0:00:26]} 23. Kh1 {[%emt 0:00:00]} cxd2 {[%emt 0:00:18]} 24. Rxd2 {[%emt 0:00:02]} Qe7 {[%emt 0:00:20]} 25. Re2 {[%emt 0:00:56]} Ra5 {[%emt 0:00:28]} 26. Qh4 {[%emt 0:00:14]} Kg8 {[%emt 0:01:18]} 27. Rfe1 {[%emt 0:00:07]} Rh5 {[%emt 0:01:28]} 28. Qg3 {[%emt 0:00:04]} Bc7 {[%emt 0:01:03]} 29. f4 {[%emt 0:00:01]} Rh6 {[%emt 0:02:37]} 30. e5 {[%emt 0:00:21]} Nh5 {[%emt 0:00:16]} 31. Qf3 {[%emt 0:00:20]} Qh4 {[%emt 0:00:28]} 0-1

[Event "FIDE World School-ch O-13 2025"]
[Site "Vrnjacka Banja"]
[Date "2025.03.20"]
[Round "1.3"]
[White "You, Eden"]
[Black "Lee, Tsuen Jin Aiesec"]
[Result "0-1"]
[Annotator "TA"]
[ECO "C07"]
[WhiteElo "2083"]
[BlackElo "1693"]
[PlyCount "160"]
[EventDate "2025.03.19"]
[EventType "swiss"]
[EventCountry "SRB"]
[SourceTitle "playchess.com"]
[Source "ChessBase"]
[SourceQuality "1"]
[TimeControl "5400+30"]

{[%evp 10,160,25,14,14,19,29,11,22,10,21,18,17,3,12,12,30,8,9,10,10,0,-1,-13,0,-35,-27,-35,-16,-23,0,-8,-19,-26,-19,-26,-31,-31,-29,-20,-20,-35,0,-3,0,0,0,0,0,0,0,0,0,0,0,-28,-25,-41,-38,-39,-36,-55,-8,-8,-8,-59,-45,-108,-102,-115,-45,-30,0,0,0,0,0,-97,-93,-95,0,0,0,0,0,-100,0,-92,-91,-96,-33,-29,-37,-68,-77,-93,-87,-91,0,0,0,0,0,0,0,0,0,0,0,0,0,-5,0,-8,0,0,0,-5,-5,-29,-5,-830,-808,-727,-716,-658,-593,-1474,-1385,-1160,-1231,-29961,-29965,-29966,-1228,-29957,-29962,-12804,-8925,-1576,-1224,-29975,-29976,-29979,-29974,-29981,-29982,-29982,-29983,-29993,-29994,-29997,-29998]} 1. e4 {[%emt 0:00:04]} e6 {[%emt 0:00:02]} 2. d4 {[%emt 0:00:10]} d5 {[%emt 0:00:02]} 3. Nd2 {[%emt 0:00:31]} c5 {[%emt 0:00:03]} 4. exd5 {[%emt 0:00:33]} Qxd5 {[%emt 0:00:05]} 5. Ngf3 {[%emt 0:00:39]} cxd4 {[%emt 0:00:05]} 6. Bc4 {[%emt 0:00:24]} Qd7 {[%emt 0:00:03] C07: French Tarrasch: 3...c5, 4 Ngf3 and 4 exd5 Qxd5.} 7. O-O {[%emt 0:01:00]} Nf6 {[%emt 0:00:04]} 8. Nb3 {[%emt 0:02:16]} Nc6 {[%emt 0:00:06] The position is equal.} 9. Nbxd4 {[%emt 0:01:48]} Nxd4 {[%emt 0:00:04]} 10. Nxd4 {[%emt 0:00:53]} a6 {[%emt 0:00:04] Prevents Bb5} 11. Re1 {[%emt 0:02:11]} b5 {[%emt 0:00:31]} 12. Bb3 {[%emt 0:03:04]} Bc5 {[%emt 0:00:08]} 13. c3 {[%emt 0:04:52]} Bxd4 {[%emt 0:01:16]} 14. cxd4 {[%emt 0:11:29]} Bb7 {[%emt 0:00:08]} 15. Be3 $146 {[%emt 0:04:19]} (15. Bf4 O-O 16. Be5 Nd5 17. Qh5 f6 18. Bg3 Rac8 19. Re2 Rfe8 20. Rae1 a5 21. a3 {0-1 Supi,L (2570)-Quesada Perez,L (2542) Online Olym Div Top-D rapid 2020 (3.1)}) 15... O-O {[%emt 0:00:45]} 16. Rc1 {[%emt 0:01:53]} Rac8 {[%emt 0:00:39]} 17. Qe2 {[%emt 0:04:18]} Bd5 {[%emt 0:01:16]} 18. Bxd5 {[%emt 0:08:34]} Nxd5 {[%emt 0:00:36]} 19. Rc5 {[%emt 0:04:07]} Rc6 {[%emt 0:08:51]} 20. Rxc6 {[%emt 0:06:50]} Qxc6 {[%emt 0:00:04]} 21. Rc1 {[%emt 0:00:14]} Qb6 {[%emt 0:07:07]} 22. Qc2 {[%emt 0:03:35]} h6 {[%emt 0:01:09]} 23. a3 {[%emt 0:02:54]} Rd8 {[%emt 0:13:24]} 24. Qc5 {[%emt 0:06:09]} Qa5 {[%emt 0:05:45]} 25. h3 {[%emt 0:03:22]} f5 {[%emt 0:03:40]} 26. g3 {[%emt 0:08:30]} Nxe3 {[%emt 0:10:32]} 27. fxe3 $11 {[%emt 0:00:21][%mdl 4096] Endgame KQR-KQR} Qd2 {[%emt 0:00:04][%csl LRb2,LRe3]} 28. Qc3 {[%emt 0:00:27]} Qe2 {[%emt 0:00:11]} (28... Qxc3 29. Rxc3 e5 30. dxe5 Rd2) 29. Rc2 {[%emt 0:03:44]} Qf3 $36 {[%emt 0:00:12][%mdl 2048] Black fights for an advantage.} 30. Kh2 {[%emt 0:00:50]} e5 {[%emt 0:01:28]} 31. Qc7 {[%emt 0:06:57]} Rd5 {[%emt 0:07:54]} 32. Qc3 {[%emt 0:03:33]} exd4 {[%emt 0:11:36]} 33. exd4 {[%emt 0:00:28]} Qe4 {[%emt 0:00:06]} 34. Rd2 $1 {[%emt 0:01:08]} f4 {[%emt 0:01:09]} 35. g4 {[%emt 0:02:25]} h5 {[%emt 0:07:47]} (35... Kf7 $15) 36. Qd3 {[%emt 0:03:58]} Qe6 {[%emt 0:21:34]} (36... Qe3 37. gxh5 Qxd3 38. Rxd3 Rxh5 39. Kg2 Rg5+) 37. Re2 {[%emt 0:00:00]} (37. Qf3 $11) 37... Qd6 {[%emt 0:00:00]} (37... Rxd4 {simplifies} 38. Qxb5 axb5 39. Rxe6 Rd2+) 38. Kg2 {[%emt 0:00:01]} (38. Re8+ Kf7 39. Ra8 f3+ (39... Rxd4 $2 40. Qf5+ Qf6 41. Qxh5+ g6 42. Qh7+ Ke6 43. Rxa6+ Rd6 44. Qg8+ Ke5 45. Qe8+ Kd4 46. g5 $18) 40. Kh1 Qf4 (40... Rxd4 41. Qf5+ Ke7 42. Qf8+ Ke6 43. Re8+ Kd5 44. Qxf3+ Kc5 45. b4+ Kb6 46. gxh5 $16) (40... hxg4 41. Ra7+ Kg8 42. Ra8+ Kf7 43. Ra7+ Kf6 44. Qh7 $11) 41. Ra7+ Kf6 42. Rxa6+ Kg5 43. Rg6+ Kh4 44. gxh5 Rxd4 $17) ({White should play} 38. Qb3 $15 Kf8 39. Qf3) 38... Rxd4 $17 {[%emt 0:00:00]} 39. Qf5 {[%emt 0:00:46] White wants to mate with Re8+.} Qc6+ {[%emt 0:00:00]} (39... Rd2 $1 $17 {[%cal Rd2e2]} 40. Qe4 Rxe2+ 41. Qxe2 Qd5+ 42. Kg1 hxg4 43. Qxg4 Qe5) 40. Kf2 $15 {[%emt 0:00:20]} Rd5 {[%emt 0:00:00]} 41. Re8+ {[%emt 0:00:35]} Qxe8 {[%emt 0:00:00]} 42. Qxd5+ $11 {[%emt 0:00:10] KQ-KQ. Black is a pawn up.} Qf7 {[%emt 0:00:00]} 43. Qa8+ {[%emt 0:01:02]} (43. Qxf7+ $2 Kxf7 44. Kf3 hxg4+ 45. hxg4 (45. Kxg4 $2 g5 $19) 45... g5 $19) (43. Qe5 $11) 43... Kh7 $17 {[%emt 0:00:00]} 44. Qxa6 {[%emt 0:00:14]} Qd5 {[%emt 0:00:00]} ({Black should try} 44... Qb3 $17 45. gxh5 Qe3+ (45... Qxh3 46. Qg6+ Kh8 47. Qe8+ Kh7 48. Qe4+ Kg8 49. Qxf4 $11) (45... Qxb2+ 46. Kf3 $15) 46. Kf1 Qxh3+ 47. Kf2 Qe3+ (47... Qxh5 48. Qe6 $17) 48. Kf1 Qd3+ 49. Ke1 Qe3+ 50. Kf1) 45. gxh5 $11 {[%emt 0:00:44]} Qd2+ {[%emt 0:00:30]} 46. Kf1 $1 {[%emt 0:00:30]} Qd3+ {[%emt 0:00:14]} 47. Kf2 {[%emt 0:00:35]} (47. Ke1 $1 $11 {remains equal.} Qb1+ (47... Qxh3 48. Qg6+ Kh8 49. Qe8+ Kh7 50. Qe4+ Kg8 51. Qxf4 $11) 48. Ke2 Qxb2+ 49. Kf3) 47... Qg3+ {[%emt 0:00:19]} ({But not} 47... Qxh3 $6 48. Qg6+ Kg8 49. Qe8+ Kh7 50. Qe4+ Kh8 51. Qxf4 $11) (47... Qe3+ $17 48. Kf1 Qxh3+ 49. Ke1 Qg3+ (49... Qxh5 50. Qe6 $17) 50. Kf1 Qf3+ 51. Ke1 Qh1+ (51... Qxh5 52. Qe6 $17) 52. Kf2 Qxh5) 48. Kf1 {[%emt 0:00:17]} (48. Ke2 $11 Qe3+ (48... Qxh3 49. Qg6+ Kh8 50. Qe8+ Kh7 51. Qe4+ Kg8 52. Qxf4 $11) 49. Kd1) 48... Qxh3+ $17 {[%emt 0:00:19]} 49. Ke1 {[%emt 0:00:11]} Qxh5 {[%emt 0:01:05] Black is more active.} (49... Qe3+ $17 50. Kd1 f3 51. Qxb5 f2) 50. Qe6 $15 {[%emt 0:00:33]} Qh1+ {[%emt 0:01:48]} 51. Kf2 {[%emt 0:00:54]} Qh2+ {[%emt 0:00:45]} 52. Kf1 {[%emt 0:00:37]} Qxb2 {[%emt 0:01:20]} 53. Qe4+ {[%emt 0:00:18] [#]} g6 {[%emt 0:00:13]} (53... Kh6 $1 $17 54. Qxf4+ Kh5 55. Qf5+ Kh4 56. Qe4+ Kg5) 54. Qe7+ $11 {[%emt 0:00:37]} Qg7 {[%emt 0:01:10]} 55. Qh4+ {[%emt 0:00:05]} Kg8 {[%emt 0:00:03]} 56. Qd8+ {[%emt 0:00:13]} Qf8 {[%emt 0:00:05]} 57. Qd5+ {[%emt 0:00:13]} Kg7 {[%emt 0:00:21]} 58. Qd7+ {[%emt 0:00:36]} Kf6 {[%emt 0:01:14]} 59. Qc6+ {[%emt 0:00:49]} Kg7 {[%emt 0:00:45]} 60. Qd7+ {[%emt 0:00:21]} Kh8 {[%emt 0:00:22]} 61. Qd4+ {[%emt 0:00:38]} Kh7 {[%emt 0:01:02]} 62. Qd7+ {[%emt 0:00:11]} Qg7 {[%emt 0:00:06]} 63. Qh3+ {[%emt 0:00:25]} Kg8 {[%emt 0:00:19]} 64. Qc8+ {[%emt 0:00:27]} Qf8 {[%emt 0:00:05]} 65. Qe6+ $2 {[%emt 0:00:24][%mdl 8192] Now White is beyond hope.} (65. Qc6 $11) 65... Qf7 $19 {[%emt 0:00:04]} 66. Qc8+ {[%emt 0:00:19]} Kg7 {[%emt 0:00:06]} 67. Qc3+ {[%emt 0:00:20]} Qf6 {[%emt 0:00:08]} 68. Qd3 {[%emt 0:01:24]} Qc6 {[%emt 0:00:27] ( -> ...Qc4) Inhibits Qd7+.} 69. Qd4+ {[%emt 0:00:57] [#]} Kf7 $1 {[%emt 0:00:09] ( -> ...Qc4+)} 70. Qa7+ {[%emt 0:00:25]} Ke6 {[%emt 0:00:05]} 71. Kf2 {[%emt 0:00:32]} Qd5 {[%emt 0:01:01]} (71... Kf5 $142 72. Ke1 g5 73. Qg7 Kg4 74. Kd1 Qd5+ 75. Ke1 Qe4+ 76. Kd1 f3 77. Qd7+ Kg3 78. Qd6+ Kh3 79. Qh6+ Kg4 80. Qb6 Qe2+ 81. Kc1 f2 82. Qd4+ Kg3 83. Qd6+ Kh3 84. Qf6 f1=Q+ (84... f1=B $2 85. Qxg5 Qc4+ 86. Kb2 $19) 85. Qxf1+ Qxf1+ 86. Kc2 g4 87. Kc3 Qc4+ 88. Kd2 g3 89. Ke3 g2 90. Kf2 Qe4 91. a4 Kh2 92. axb5 g1=Q#) 72. Qa6+ {[%emt 0:00:43]} Kf5 {[%emt 0:00:07]} 73. Qc8+ {[%emt 0:00:13]} Kg5 {[%emt 0:00:04]} 74. Qc3 {[%emt 0:00:27] Wards off Qd2+} Qf5 {[%emt 0:01:34] Hoping for ...Qd5.} 75. Qb4 {[%emt 0:00:49]} Qc2+ {[%emt 0:00:45] Black mates.} 76. Ke1 {[%emt 0:00:29]} Qd3 {[%emt 0:01:05]} 77. Qc5+ {[%emt 0:00:32]} Kg4 {[%emt 0:00:17]} 78. Qc8+ {[%emt 0:00:31]} Kg3 {[%emt 0:00:32]} 79. Qc6 {[%emt 0:00:30]} f3 {[%emt 0:00:43][%csl Gg3][%cal Rf3f2]} ({And not} 79... Qxa3 80. Qxg6+ Kh4 81. Qf6+ Kg4 82. Qg6+ Kh4 83. Qf6+ Kg3 84. Qg6+ Kf3 85. Qd3+ Qxd3 $11) 80. Qc7+ {[%emt 0:00:12]} Kg2 {[%emt 0:00:05] Weighted Error Value: White=0.15 (very precise) /Black=0.14 (very precise)   Loses game:     	White=1     	---        Mistake:       	White=5     	Black=6      Inaccurate:     	White=3     	Black=2      OK:         	White=26    	Black=19     Best:        	White=5     	Black=6      Strong:       	White=2     	---} 0-1

[Event "FIDE World School-ch O-13 2025"]
[Site "Vrnjacka Banja"]
[Date "2025.03.20"]
[Round "1.4"]
[White "Videnovic, Boris"]
[Black "Rusu, Lucas"]
[Result "0-1"]
[Annotator "NA RC"]
[ECO "B49"]
[WhiteElo "1679"]
[BlackElo "2049"]
[PlyCount "86"]
[EventDate "2025.03.19"]
[EventType "swiss"]
[EventCountry "SRB"]
[SourceTitle "playchess.com"]
[Source "ChessBase"]
[SourceQuality "1"]
[TimeControl "5400+30"]

1. e4 {[%emt 0:00:09]} c5 {[%emt 0:00:02]} 2. Nf3 {[%emt 0:00:19]} e6 {[%emt 0:00:01]} 3. d4 {[%emt 0:01:15]} cxd4 {[%emt 0:00:02]} 4. Nxd4 {[%emt 0:00:17]} Nc6 {[%emt 0:00:01]} 5. Nc3 {[%emt 0:01:07]} Qc7 {[%emt 0:00:01]} 6. Be3 {[%emt 0:03:05]} a6 {[%emt 0:00:06]} 7. Be2 {[%emt 0:01:29]} Nf6 {[%emt 0:00:06]} 8. Qd2 {[%emt 0:01:00]} Bb4 {[%emt 0:01:44]} 9. a3 {[%emt 0:01:12]} Nxe4 {[%emt 0:01:41]} 10. Qd3 {[%emt 0:00:44]} Bxc3+ {[%emt 0:02:06]} 11. bxc3 {[%emt 0:00:07]} Ne5 {[%emt 0:07:10]} 12. Qd1 {[%emt 0:05:38]} Nxc3 {[%emt 0:01:45]} 13. Qd2 {[%emt 0:01:30]} Nd5 {[%emt 0:00:36]} 14. O-O {[%emt 0:06:23]} Qc3 {[%emt 0:03:15]} 15. Rfd1 {[%emt 0:04:59]} Qxd2 {[%emt 0:00:10]} 16. Bxd2 {[%emt 0:00:51]} b5 {[%emt 0:02:24]} 17. Nf3 {[%emt 0:00:35]} Nxf3+ {[%emt 0:00:41]} 18. Bxf3 {[%emt 0:00:05]} Bb7 {[%emt 0:00:00]} 19. a4 {[%emt 0:01:12]} Rc8 {[%emt 0:01:39]} 20. axb5 {[%emt 0:00:27]} axb5 {[%emt 0:00:07]} 21. Ra7 {[%emt 0:01:02]} Bc6 {[%emt 0:00:18]} 22. Re1 {[%emt 0:01:01]} O-O {[%emt 0:01:14]} 23. Rc1 {[%emt 0:01:19]} Ra8 {[%emt 0:00:27]} 24. Rca1 {[%emt 0:01:54]} Rxa7 {[%emt 0:00:27]} 25. Rxa7 {[%emt 0:00:03]} Ra8 {[%emt 0:00:27]} 26. Rxa8+ {[%emt 0:00:04]} Bxa8 {[%emt 0:00:01]} 27. Bxd5 {[%emt 0:00:19]} Bxd5 {[%emt 0:00:06]} 28. Bb4 {[%emt 0:00:10]} f6 {[%emt 0:00:03]} 29. f3 {[%emt 0:00:07]} Kf7 {[%emt 0:00:03]} 30. Kf2 {[%emt 0:00:06]} e5 {[%emt 0:00:04]} 31. Ke3 {[%emt 0:00:10]} Ke6 {[%emt 0:00:05]} 32. c3 {[%emt 0:00:23]} Bb7 {[%emt 0:00:57]} 33. g3 {[%emt 0:00:15]} Kd5 {[%emt 0:08:34]} 34. Kd3 {[%emt 0:03:19]} g6 {[%emt 0:24:32]} 35. f4 {[%emt 0:12:41]} e4+ {[%emt 0:01:01]} 36. Ke3 {[%emt 0:00:09]} Kc4 {[%emt 0:00:05]} 37. g4 {[%emt 0:01:34]} d5 {[%emt 0:00:45]} 38. f5 {[%emt 0:00:33]} d4+ {[%emt 0:00:10]} 39. Kd2 {[%emt 0:00:27]} e3+ {[%emt 0:00:11]} 40. Kc2 {[%emt 0:00:30]} d3+ {[%emt 0:00:04]} 41. Kd1 {[%emt 0:00:12]} gxf5 {[%emt 0:00:03]} 42. gxf5 {[%emt 0:00:12]} Bf3+ {[%emt 0:00:01]} 43. Kc1 {[%emt 0:00:21]} d2+ {[%emt 0:00:03]} 0-1

[Event "FIDE World School-ch O-13 2025"]
[Site "Vrnjacka Banja"]
[Date "2025.03.20"]
[Round "1.5"]
[White "Sakotic, Nikola"]
[Black "Gaurav Karthikeya Pasangulapat"]
[Result "1-0"]
[Annotator "NA RC"]
[ECO "D38"]
[WhiteElo "2039"]
[BlackElo "1656"]
[PlyCount "77"]
[EventDate "2025.03.19"]
[EventType "swiss"]
[EventCountry "SRB"]
[SourceTitle "playchess.com"]
[Source "ChessBase"]
[SourceQuality "1"]
[TimeControl "5400+30"]

1. Nf3 {[%emt 0:00:08]} d5 {[%emt 0:00:19]} 2. d4 {[%emt 0:00:03]} Nf6 {[%emt 0:00:05]} 3. c4 {[%emt 0:00:05]} e6 {[%emt 0:00:03]} 4. Nc3 {[%emt 0:00:03]} Bb4 {[%emt 0:00:12]} 5. Qa4+ {[%emt 0:00:20]} Nc6 {[%emt 0:00:09]} 6. Bg5 {[%emt 0:00:11]} h6 {[%emt 0:00:45]} 7. Bxf6 {[%emt 0:00:05]} Qxf6 {[%emt 0:04:28]} 8. e3 {[%emt 0:00:05]} O-O {[%emt 0:00:37]} 9. Bd3 {[%emt 0:03:17]} Bd7 {[%emt 0:04:12]} 10. O-O {[%emt 0:00:50]} Bxc3 {[%emt 0:00:07]} 11. bxc3 {[%emt 0:00:05]} Rfd8 {[%emt 0:02:59]} 12. cxd5 {[%emt 0:03:01]} exd5 {[%emt 0:03:08]} 13. Rab1 {[%emt 0:01:10]} Rab8 {[%emt 0:02:18]} 14. Qc2 {[%emt 0:05:37]} Bg4 {[%emt 0:04:47]} 15. Nd2 {[%emt 0:02:28]} Ne7 {[%emt 0:02:33]} 16. e4 {[%emt 0:04:01]} Ng6 {[%emt 0:09:34]} 17. e5 {[%emt 0:06:54]} Qg5 {[%emt 0:04:59]} 18. g3 {[%emt 0:02:33]} Bh3 {[%emt 0:06:00]} 19. f4 {[%emt 0:01:07]} Qg4 {[%emt 0:03:29]} 20. Rf2 {[%emt 0:00:59]} b6 {[%emt 0:12:01]} 21. f5 {[%emt 0:02:09]} Ne7 {[%emt 0:00:28]} 22. Rf4 {[%emt 0:00:43]} Qg5 {[%emt 0:02:18]} 23. Nf3 {[%emt 0:07:00]} Qh5 {[%emt 0:02:15]} 24. Nh4 {[%emt 0:08:42]} c5 {[%emt 0:34:44]} 25. Qf2 {[%emt 0:11:27]} Nc6 {[%emt 0:00:00]} 26. Re1 {[%emt 0:08:12]} c4 {[%emt 0:00:00]} 27. Be2 {[%emt 0:00:28]} Qg5 {[%emt 0:00:00]} 28. Nf3 {[%emt 0:02:53]} Qe7 {[%emt 0:00:00]} 29. g4 {[%emt 0:00:45]} Qa3 {[%emt 0:00:00]} 30. Qh4 {[%emt 0:05:24]} Qxc3 {[%emt 0:00:00]} 31. Kf2 {[%emt 0:00:14]} Nb4 {[%emt 0:00:00]} 32. f6 {[%emt 0:04:36]} Nc2 {[%emt 0:00:00]} 33. fxg7 {[%emt 0:01:29]} Kxg7 {[%emt 0:00:00]} 34. Qf6+ {[%emt 0:00:50]} Kg8 {[%emt 0:00:00]} 35. Qxf7+ {[%emt 0:00:05]} Kh8 {[%emt 0:00:00]} 36. Qf6+ {[%emt 0:00:16]} Kh7 {[%emt 0:00:00]} 37. Qe7+ {[%emt 0:00:11]} Kh8 {[%emt 0:00:00]} 38. Rf7 {[%emt 0:00:59]} Qe3+ {[%emt 0:00:00]} 39. Kg3 {[%emt 0:20:35]} 1-0

[Event "FIDE World School-ch O-13 2025"]
[Site "Vrnjacka Banja"]
[Date "2025.03.20"]
[Round "1.6"]
[White "Sarkodee-Addo Harry"]
[Black "Petroff, Vlad"]
[Result "0-1"]
[Annotator "NA RC"]
[ECO "D02"]
[WhiteElo "1655"]
[BlackElo "2030"]
[PlyCount "90"]
[EventDate "2025.03.19"]
[EventType "swiss"]
[EventCountry "SRB"]
[SourceTitle "playchess.com"]
[Source "ChessBase"]
[SourceQuality "1"]
[TimeControl "5400+30"]

1. Nf3 {[%emt 0:00:02]} d5 {[%emt 0:00:20]} 2. g3 {[%emt 0:00:11]} Nc6 {[%emt 0:00:33]} 3. d4 {[%emt 0:00:08]} Bf5 {[%emt 0:00:45]} 4. c3 {[%emt 0:00:47]} e6 {[%emt 0:02:10]} 5. Bg2 {[%emt 0:00:40]} Nf6 {[%emt 0:01:54]} 6. Bg5 {[%emt 0:00:22]} Be7 {[%emt 0:01:49]} 7. Nbd2 {[%emt 0:02:32]} O-O {[%emt 0:02:16]} 8. O-O {[%emt 0:01:18]} h6 {[%emt 0:05:02]} 9. Bxf6 {[%emt 0:01:07]} Bxf6 {[%emt 0:01:11]} 10. Re1 {[%emt 0:00:10]} Nb8 {[%emt 0:15:52]} 11. Qb3 {[%emt 0:05:08]} Qc8 {[%emt 0:02:21]} 12. e4 {[%emt 0:00:23]} dxe4 {[%emt 0:02:19]} 13. Nxe4 {[%emt 0:00:09]} Be7 {[%emt 0:02:26]} 14. Rad1 {[%emt 0:06:40]} c6 {[%emt 0:01:48]} 15. Ne5 {[%emt 0:02:43]} Na6 {[%emt 0:05:56]} 16. Nd3 {[%emt 0:02:19]} Qc7 {[%emt 0:02:37]} 17. Rd2 {[%emt 0:08:28]} Rfd8 {[%emt 0:05:51]} 18. h3 {[%emt 0:01:19]} Rab8 {[%emt 0:06:02]} 19. Red1 {[%emt 0:02:04]} Qa5 {[%emt 0:04:21]} 20. Qc4 {[%emt 0:15:10]} Nc7 {[%emt 0:12:26]} 21. Ndc5 {[%emt 0:14:57]} Nd5 {[%emt 0:02:16]} 22. a3 {[%emt 0:05:52]} Qc7 {[%emt 0:03:11]} 23. Qa4 {[%emt 0:05:17]} a6 {[%emt 0:01:54]} 24. Qb3 {[%emt 0:01:53]} Nb6 {[%emt 0:02:45]} 25. Bf1 {[%emt 0:05:17]} Nd7 {[%emt 0:00:35]} 26. Nxd7 {[%emt 0:00:59]} Rxd7 {[%emt 0:00:39]} 27. Bg2 {[%emt 0:00:18]} Rbd8 {[%emt 0:01:09]} 28. Qc2 {[%emt 0:05:59]} Qa5 {[%emt 0:03:37]} 29. Qc1 {[%emt 0:00:57]} Qb6 {[%emt 0:01:36]} 30. Kh2 {[%emt 0:01:43]} Bxe4 {[%emt 0:03:08]} 31. Bxe4 {[%emt 0:00:13]} Qc7 {[%emt 0:00:21]} 32. Rd3 {[%emt 0:01:16]} Rd6 {[%emt 0:02:14]} 33. Qd2 {[%emt 0:02:04]} Qd7 {[%emt 0:01:43]} 34. Kg2 {[%emt 0:00:58]} f5 {[%emt 0:01:26]} 35. Bf3 {[%emt 0:00:41]} e5 {[%emt 0:00:24]} 36. Be2 {[%emt 0:03:50]} e4 {[%emt 0:00:20]} 37. Re3 {[%emt 0:00:30]} Bg5 {[%emt 0:00:07]} 38. Bc4+ {[%emt 0:00:16]} Kh8 {[%emt 0:00:35]} 39. Qe1 {[%emt 0:00:40]} Bxe3 {[%emt 0:00:29]} 40. Qxe3 {[%emt 0:00:07]} c5 {[%emt 0:00:55]} 41. d5 {[%emt 0:00:14]} b5 {[%emt 0:00:05]} 42. Ba2 {[%emt 0:00:55]} c4 {[%emt 0:00:11]} 43. Qc5 {[%emt 0:01:02]} Rxd5 {[%emt 0:00:17]} 44. Rxd5 {[%emt 0:00:06]} Qxd5 {[%emt 0:00:01]} 45. Qe7 {[%emt 0:00:24]} e3+ {[%emt 0:00:08]} 0-1